bitfinex/quotes_ETHUSD_20250430
["timestamp","ask_amount","ask_price","bid_price","bid_amount"]
[1746048862274,7.42904362,1797.4,1797.1,0.11404535]
[1746048863277,13.51904362,1797.4,1797.1,0.11404535]
[1746048863893,5.56395833,1797.3,1797.1,0.11404535]
[1746048864287,5.56421099,1797.2,1796.9,5.3835]
[1746048864505,6.09,1797.4,1797.1,6.37073809]
[1746048864811,6.09,1797.4,1797.2,5.6779768]
[1746048865434,6.09,1797.4,1797.2,6.4779768]
[1746048866005,6.09,1797.4,1797.2,0.91392641]
[1746048866926,6.09,1797.4,1797.2,6.47803503]
[1746048867801,6.09,1797.4,1797.2,0.10886309]
[1746048868402,6.09,1797.4,1797.2,0.90886309]
[1746048868703,6.09,1797.4,1797.2,0.10886309]
[1746048869227,5.5636832,1797.4,1797.2,0.10886309]
[1746048869415,7.28538188,1797.4,1797.2,0.10886309]
[1746048871736,12.84923406,1797.4,1797.2,0.10886309]
[1746048872859,5.5639014,1797.3,1797.2,0.10886309]
[1746048873070,6.09,1797.5,1797.2,0.92016309]
[1746048873231,11.65281218,1797.7,1797.3,11.12740236]
[1746048873561,11.65281218,1797.7,1797.4,5.69108466]
[1746048873742,13.45301272,1797.7,1797.4,0.12750692]
[1746048874049,13.45301272,1797.7,1797.3,11.12744948]
[1746048874249,11.65281218,1797.7,1797.5,0.12736424]
[1746048874447,11.65281218,1797.7,1797.3,5.56367971]
[1746048874614,14.65281218,1797.7,1797.6,0.12722158]
[1746048874811,20.21575772,1797.7,1797.3,5.56367971]
[1746048875035,14.65281218,1797.7,1797.4,0.12750692]
[1746048875239,14.65281218,1797.7,1797.3,5.56367971]
[1746048875447,20.21573513,1797.7,1797.4,0.12750692]
[1746048875634,5.56298481,1797.6,1797.3,5.56367971]
[1746048875834,5.56298481,1797.6,1797.4,0.12750692]
[1746048876035,5.56298481,1797.6,1797.3,5.56367971]
[1746048876236,5.56298481,1797.6,1797.4,0.12750692]
[1746048876450,5.56298481,1797.6,1797.3,5.56367971]
[1746048876657,5.56298481,1797.6,1797.5,0.12736424]
[1746048876853,5.56298481,1797.6,1797.3,5.56367971]
[1746048877067,5.56298481,1797.6,1797.5,0.12736424]
[1746048877255,5.56298481,1797.6,1797.3,5.56367971]
[1746048877456,5.56298481,1797.6,1797.5,0.12736424]
[1746048877636,14.65281218,1797.7,1797.3,11.12745777]
[1746048877837,14.65281218,1797.7,1797.4,0.12750692]
[1746048877838,5.56300546,1797.6,1797.4,0.12750692]
[1746048878070,5.56300546,1797.6,1797.3,5.56367971]
[1746048878277,5.56300546,1797.6,1797.5,0.12736424]
[1746048878446,5.56300546,1797.6,1797.3,5.56367971]
[1746048878635,5.56300546,1797.6,1797.5,0.12699104]
[1746048878836,5.56300546,1797.6,1797.3,5.56367971]
[1746048879037,5.56300546,1797.6,1797.4,0.12713372]
[1746048879349,5.56300546,1797.6,1797.3,5.56367971]
[1746048879542,5.56300546,1797.6,1797.5,0.12699104]
[1746048879871,7.58458722,1797.6,1797.5,0.12699104]
[1746048880074,7.58458722,1797.6,1797.3,5.51367971]
[1746048880372,7.58458722,1797.6,1797.5,0.12699104]
[1746048880532,7.58458722,1797.6,1797.4,0.12713372]
[1746048880737,7.58458722,1797.6,1797.3,5.51367971]
[1746048880939,5.56300546,1797.6,1797.5,0.12699104]
[1746048881571,5.56300546,1797.6,1797.3,5.51367971]
[1746048881876,20.21573309,1797.7,1797.4,0.12713372]
[1746048882075,20.21571827,1797.7,1797.3,5.51367971]
[1746048882262,5.56297536,1797.6,1797.5,0.12699104]
[1746048882449,7.58455411,1797.6,1797.3,5.51367971]
[1746048882646,7.58455411,1797.6,1797.4,0.12713372]
[1746048882852,7.58455411,1797.6,1797.3,5.51367971]
[1746048883062,7.58455411,1797.6,1797.5,0.12699104]
[1746048883267,7.58455411,1797.6,1797.3,5.51367971]
[1746048883578,5.56297536,1797.6,1797.5,0.12699104]
[1746048883744,5.56297536,1797.6,1797.4,0.12713372]
[1746048883956,5.56297536,1797.6,1797.3,5.51367971]
[1746048884162,5.56297536,1797.6,1797.5,0.12699104]
[1746048884389,5.56297536,1797.6,1797.4,0.12713372]
[1746048884565,7.58455411,1797.6,1797.5,0.12699104]
[1746048885278,7.58455411,1797.6,1797.3,5.56388028]
[1746048885468,5.56297536,1797.6,1797.5,0.12699104]
[1746048885651,5.56297536,1797.6,1797.3,5.56388028]
[1746048885856,5.56297536,1797.6,1797.4,0.12713372]
[1746048886058,5.56297536,1797.6,1797.3,5.56388028]
[1746048886356,5.56297536,1797.6,1797.5,0.12699104]
[1746048886551,7.58455411,1797.6,1797.4,0.12713372]
[1746048886757,7.58455411,1797.6,1797.5,0.12699104]
[1746048886962,8.40085411,1797.6,1797.5,0.12699104]
[1746048887279,8.40085411,1797.6,1797.2,4.619]
[1746048887280,11.12691325,1797.5,1797.2,4.619]
[1746048888194,5.56339129,1797.5,1797.2,4.619]
[1746048889193,5.56361342,1797.4,1797.2,4.619]
[1746048889800,11.65361342,1797.4,1797.3,0.1262812]
[1746048889984,6.09,1797.4,1797.3,0.1262812]
[1746048890499,11.65359185,1797.4,1797.3,0.1262812]
[1746048890668,13.37529016,1797.4,1797.3,0.1262812]
[1746048890990,13.37529016,1797.4,1797.1,10.18329531]
[1746048890991,6.09,1797.4,1797.1,10.18329531]
[1746048891155,6.09,1797.4,1797.3,0.1262812]
[1746048891358,6.09,1797.4,1797.2,5.69063191]
[1746048891598,6.09,1797.4,1797.3,0.1262812]
[1746048894904,6.09,1797.4,1797.1,10.18329531]
[1746048895104,6.09,1797.4,1797.3,0.10653016]
[1746048895307,0.8163,1797.0,1796.6,3.72143224]
[1746048895458,5.56559377,1796.8,1796.6,3.72143224]
[1746048897396,5.56575944,1796.7,1796.6,3.72143224]
[1746048900599,5.56575944,1796.7,1796.5,4.619]
[1746048902211,5.56559377,1796.8,1796.5,4.619]
[1746048902414,11.13133649,1796.8,1796.5,4.619]
[1746048902765,5.56559377,1796.8,1796.5,4.619]
[1746048903117,11.13133209,1796.8,1796.5,4.619]
[1746048903423,5.56587208,1796.7,1796.5,4.619]
[1746048904615,5.56559377,1796.8,1796.5,4.619]
[1746048904782,5.56583485,1796.7,1796.5,4.619]
[1746048905500,5.56559377,1796.8,1796.5,4.619]
[1746048905701,5.56586625,1796.7,1796.5,4.619]
[1746048909832,5.56586625,1796.7,1796.6,0.01023065]
[1746048913224,5.56559377,1796.8,1796.6,0.01023065]
[1746048913421,5.56575944,1796.7,1796.6,0.01023065]
[1746048916236,6.12215315,1796.8,1796.6,0.01023065]
[1746048916530,5.56575944,1796.7,1796.6,0.01023065]
[1746048919133,6.94665315,1796.8,1796.6,0.01023065]
[1746048919348,5.56575944,1796.7,1796.6,0.01023065]
[1746048919545,12.51236774,1796.8,1796.6,0.01023065]
[1746048920258,5.56575944,1796.7,1796.6,0.01023065]
[1746048921139,6.94665315,1796.8,1796.6,0.01023065]
[1746048921338,6.12215315,1796.8,1796.6,0.01023065]
[1746048921568,3.0,1796.9,1796.6,0.84303065]
[1746048921741,8.56530757,1796.9,1796.6,0.84303065]
[1746048921904,5.565017,1797.0,1796.6,6.40909678]
[1746048922104,11.13007643,1797.0,1796.6,6.40909678]
[1746048922305,5.56514996,1796.9,1796.6,6.40909678]
[1746048923015,5.565017,1797.0,1796.6,11.97496046]
[1746048923218,5.56437176,1797.2,1796.9,5.56504031]
[1746048923546,5.56437176,1797.2,1796.8,16.58339758]
[1746048923719,5.56437176,1797.2,1796.8,11.01805758]
[1746048923925,5.56437176,1797.2,1796.8,16.58329676]
[1746048924236,5.56437176,1797.2,1796.8,12.75636886]
[1746048925029,11.12883897,1797.2,1796.8,12.75636886]
[1746048925212,5.56437176,1797.2,1796.8,12.75636886]
[1746048926062,11.12882478,1797.2,1796.8,12.75636886]
[1746048926668,5.56437176,1797.2,1796.8,12.75636886]
[1746048927167,5.56437176,1797.2,1796.8,13.55636886]
[1746048928966,11.12882623,1797.2,1796.8,13.55636886]
[1746048929161,5.56437176,1797.2,1796.8,13.55636886]
[1746048929475,11.12880937,1797.2,1796.8,13.55636886]
[1746048930262,11.95330937,1797.2,1796.8,13.55636886]
[1746048930565,6.38887176,1797.2,1796.8,13.55636886]
[1746048930972,6.38887176,1797.2,1796.8,12.72356886]
[1746048931431,6.38887176,1797.2,1796.9,0.34278544]
[1746048931955,6.38887176,1797.2,1796.8,18.28882245]
[1746048932149,6.38887176,1797.2,1796.9,0.34454613]
[1746048932361,6.38887176,1797.2,1796.8,18.28882245]
[1746048932565,11.95335143,1797.2,1796.9,0.34454613]
[1746048932768,11.95335143,1797.2,1796.8,10.98523918]
[1746048933004,11.95335143,1797.2,1796.9,0.34454613]
[1746048933375,11.95335143,1797.2,1796.8,10.98523918]
[1746048933579,11.95335143,1797.2,1796.9,0.34454613]
[1746048933775,11.95335143,1797.2,1796.8,10.98523918]
[1746048933988,11.95335143,1797.2,1796.9,0.34454613]
[1746048934276,11.95335143,1797.2,1796.8,10.98523918]
[1746048934277,5.56455627,1797.1,1796.8,10.98523918]
[1746048934605,5.56455627,1797.1,1796.9,0.34454613]
[1746048934795,5.56455627,1797.1,1796.8,12.64032125]
[1746048934982,5.56455627,1797.1,1796.9,0.34454613]
[1746048935182,5.56455627,1797.1,1796.8,10.98523918]
[1746048935384,5.56455627,1797.1,1796.9,0.34454613]
[1746048935595,5.56455627,1797.1,1796.8,10.98523918]
[1746048935792,5.56455627,1797.1,1796.9,0.34454613]
[1746048936097,5.56455627,1797.1,1796.8,10.98523918]
[1746048936310,5.56455627,1797.1,1797.0,0.34441258]
[1746048936807,5.56455627,1797.1,1796.8,10.98523918]
[1746048937108,5.56455627,1797.1,1796.9,0.34444255]
[1746048937405,5.56455627,1797.1,1796.8,10.98523918]
[1746048937702,5.56455627,1797.1,1796.9,0.34444255]
[1746048937869,6.32793027,1797.0,1796.9,0.34444255]
[1746048938076,11.8930437,1797.0,1796.8,4.62]
[1746048938299,6.32793027,1797.0,1796.9,0.34444255]
[1746048938686,5.56513996,1796.9,1796.8,4.62]
[1746048939706,5.56513996,1796.9,1796.7,4.598]
[1746048940528,0.7631,1797.0,1796.7,10.16372111]
[1746048940751,11.12945324,1797.1,1796.7,11.82098632]
[1746048941231,11.12946526,1797.1,1796.7,11.82098632]
[1746048941827,11.12944085,1797.1,1796.7,11.82098632]
[1746048942032,5.56468847,1797.1,1796.7,11.82098632]
[1746048942546,5.56468053,1797.1,1796.7,11.82081908]
[1746048942700,11.12943177,1797.1,1796.7,11.82081908]
[1746048943000,11.12943988,1797.1,1796.7,11.82081908]
[1746048943300,5.56468053,1797.1,1796.7,10.16355387]
[1746048945332,6.32335467,1797.0,1796.7,10.16355387]
[1746048946350,5.56495467,1797.0,1796.7,10.16355387]
[1746048947149,6.32308053,1797.1,1796.7,10.16355387]
[1746048947641,11.8878364,1797.1,1796.7,10.16355387]
[1746048947979,6.32308053,1797.1,1796.7,10.16355387]
[1746048948168,5.56483325,1797.0,1796.7,10.16355387]
[1746048949180,6.32311689,1797.1,1796.7,10.16355387]
[1746048949691,6.32311689,1797.1,1796.8,0.34530125]
[1746048949869,5.56440437,1797.2,1796.8,6.66573414]
[1746048950385,5.5645725,1797.1,1796.8,6.66573414]
[1746048956002,5.5645725,1797.1,1796.8,1.10030125]
[1746048958015,5.56440437,1797.2,1796.8,6.66569013]
[1746048958301,11.12888332,1797.2,1796.8,6.66569013]
[1746048958772,5.56454428,1797.1,1796.8,11.26369013]
[1746048959705,5.56440437,1797.2,1796.8,11.26356531]
[1746048959896,11.1288731,1797.2,1796.8,11.26356531]
[1746048960210,5.56466652,1797.1,1796.8,5.69830125]
[1746048961599,11.12943758,1797.1,1796.8,5.69830125]
[1746048961902,5.56466652,1797.1,1796.8,5.69830125]
[1746048963785,5.56466652,1797.1,1796.8,11.26370907]
[1746048967238,12.84740701,1797.2,1796.8,11.26370907]
[1746048967401,7.28306731,1797.2,1796.9,0.7546]
[1746048967606,7.28306731,1797.2,1796.8,4.94330125]
[1746048967607,6.09,1797.2,1797.0,0.34467154]
[1746048967801,6.09,1797.2,1797.1,5.56452061]
[1746048968005,6.09,1797.2,1797.1,5.9090586]
[1746048969139,8.56365043,1797.4,1797.1,5.9090586]
[1746048969430,10.66083564,1797.4,1797.1,0.34453799]
[1746048972640,7.66083564,1797.4,1797.1,0.34453799]
[1746048976447,2.09718521,1797.4,1797.2,0.791]
[1746048976653,12.07170273,1797.5,1797.3,0.34276912]
[1746048976810,12.07170273,1797.5,1797.2,6.35520213]
[1746048977010,12.07170273,1797.5,1797.3,0.34276912]
[1746048977518,11.65340168,1797.5,1797.3,0.34276912]
[1746048978526,17.21691149,1797.5,1797.2,0.791]
[1746048978725,16.8772507,1797.5,1797.4,0.34263563]
[1746048978921,16.8772507,1797.5,1797.3,0.34276912]
[1746048979229,5.56359185,1797.4,1797.2,0.791]
[1746048979729,5.56359185,1797.4,1797.3,0.34276912]
[1746048980751,16.8772507,1797.5,1797.3,0.34276912]
[1746048980954,1.68772507,1797.4,1797.3,0.34276912]
[1746048981248,7.25131692,1797.4,1797.3,0.34276912]
[1746048985665,1.68772507,1797.4,1797.3,0.34276912]
[1746048986024,14.65340168,1797.5,1797.3,0.34276912]
[1746048987125,9.09,1797.5,1797.3,0.34276912]
[1746048988836,14.65329118,1797.5,1797.3,0.34276912]
[1746048994972,9.09,1797.5,1797.3,0.34276912]
[1746048995680,14.65334175,1797.5,1797.3,0.34276912]
[1746048997098,16.67499064,1797.5,1797.3,0.34276912]
[1746048998700,6.09,1797.5,1797.4,5.56359185]
[1746048999197,6.09,1797.5,1797.4,0.3412372]
[1746048999594,6.09,1797.5,1797.3,11.12748388]
[1746048999801,6.09,1797.5,1797.4,0.3412372]
[1746049000164,6.09,1797.5,1797.3,11.12748388]
[1746049000363,6.09,1797.5,1797.4,0.3412372]
[1746049000712,6.09,1797.5,1797.4,5.56359185]
[1746049000874,6.09,1797.5,1797.4,5.90482905]
[1746049001475,6.09,1797.5,1797.4,0.3412372]
[1746049001673,6.09,1797.5,1797.3,5.56370501]
[1746049001894,6.09,1797.5,1797.4,0.3412372]
[1746049002099,6.09,1797.5,1797.3,11.12740046]
[1746049002294,6.09,1797.5,1797.4,5.90482905]
[1746049003395,6.09,1797.5,1797.4,0.3412372]
[1746049003695,6.09,1797.5,1797.3,11.1273909]
[1746049003899,6.09,1797.5,1797.4,0.3412372]
[1746049004063,9.39095563,1797.7,1797.4,5.56359185]
[1746049004064,15.48095563,1797.7,1797.4,5.56359185]
[1746049004255,15.48095563,1797.7,1797.5,0.34110372]
[1746049004672,9.09,1797.7,1797.5,0.34110372]
[1746049004878,6.09,1797.7,1797.5,5.90424188]
[1746049006177,6.09,1797.7,1797.5,7.13073857]
[1746049006375,6.09,1797.7,1797.5,5.90422441]
[1746049009504,6.09,1797.7,1797.5,11.46732682]
[1746049009704,15.46345451,1797.9,1797.6,5.56281142]
[1746049010207,15.46345451,1797.9,1797.7,0.3408368]
[1746049013675,9.09,1797.9,1797.7,5.90334478]
[1746049013973,6.09,1797.9,1797.7,6.57529926]
[1746049016109,6.09,1797.9,1797.7,5.90334478]
[1746049018916,11.65176797,1798.0,1797.7,5.90334478]
[1746049023223,11.64376576,1798.0,1797.7,5.90334478]
[1746049025224,3.0,1798.0,1797.7,5.90333453]
[1746049025923,8.56180626,1798.0,1797.7,5.90333453]
[1746049026094,3.0,1798.0,1797.7,5.90333453]
[1746049026421,8.56175054,1798.0,1797.7,7.58967332]
[1746049030439,8.56175054,1798.0,1797.7,2.02717559]
[1746049031099,8.56175054,1798.0,1797.7,7.58981553]
[1746049032896,3.0,1798.0,1797.8,5.56224898]
[1746049033105,6.35401141,1798.1,1797.9,0.33632488]
[1746049033321,6.35401141,1798.1,1797.8,6.36644898]
[1746049033527,6.35401141,1798.1,1798.0,0.33619147]
[1746049033728,12.44401141,1798.1,1797.9,0.33632488]
[1746049033928,12.44401141,1798.1,1798.0,0.33619147]
[1746049034224,12.44401141,1798.1,1797.8,6.36644898]
[1746049034448,12.44401141,1798.1,1797.9,0.33632488]
[1746049034648,12.44401141,1798.1,1797.8,6.36644898]
[1746049034946,12.44401141,1798.1,1797.9,0.33632488]
[1746049035246,12.44401141,1798.1,1797.8,6.36644898]
[1746049035552,12.44401141,1798.1,1797.9,0.33632488]
[1746049035906,12.44401141,1798.1,1797.8,6.36644898]
[1746049036225,5.56128148,1798.2,1797.8,6.36644898]
[1746049036226,9.09,1798.3,1798.1,0.8042]
[1746049036423,9.09,1798.3,1798.2,0.3354589]
[1746049036604,9.09,1798.3,1798.1,0.8042]
[1746049037005,9.09,1798.3,1798.2,0.3338029]
[1746049037228,9.09,1798.3,1798.1,0.8042]
[1746049037504,9.09,1798.3,1798.2,0.33261274]
[1746049037706,9.09,1798.3,1798.1,0.8042]
[1746049037934,9.09,1798.3,1798.2,0.33261274]
[1746049038308,9.09,1798.3,1798.1,0.8042]
[1746049038507,9.09,1798.3,1798.2,0.33261274]
[1746049038720,9.09,1798.3,1798.1,0.8042]
[1746049038921,9.09,1798.3,1798.2,0.33261274]
[1746049039426,3.0,1798.3,1798.1,6.36555268]
[1746049039741,3.0,1798.3,1798.2,0.33261274]
[1746049040039,6.09,1798.4,1798.2,5.56107091]
[1746049040212,6.09,1798.4,1798.3,0.33247937]
[1746049040726,6.09,1798.4,1798.1,8.01612518]
[1746049041036,6.09,1798.4,1798.2,5.89372851]
[1746049042836,6.09,1798.4,1798.2,0.33261274]
[1746049043016,6.09,1798.4,1798.2,5.56107776]
[1746049043213,6.09,1798.4,1798.3,0.33247937]
[1746049044335,11.65034289,1798.5,1798.3,0.33247937]
[1746049045346,6.09,1798.5,1798.3,0.33247937]
[1746049045657,3.0,1798.6,1798.3,7.31155039]
[1746049045860,3.0,1798.6,1798.4,5.56038556]
[1746049046160,3.0,1798.6,1798.5,0.33128147]
[1746049046721,12.44381057,1798.8,1798.5,0.33128147]
[1746049047260,18.00333492,1798.8,1798.5,0.33128147]
[1746049047461,11.64941057,1798.8,1798.6,0.8292]
[1746049047763,14.64941057,1798.8,1798.7,0.33101485]
[1746049049260,15.44381057,1798.8,1798.7,0.33101485]
[1746049049467,5.55967018,1798.7,1798.4,5.4082]
[1746049049759,5.56112114,1798.2,1798.0,4.579]
[1746049049920,11.65112114,1798.2,1798.0,4.579]
[1746049050119,6.35582594,1798.1,1797.7,5.4082]
[1746049050323,0.7944,1798.1,1797.7,10.97076556]
[1746049050558,6.35592995,1798.1,1797.7,10.97075038]
[1746049050758,12.44592995,1798.1,1797.8,1.09707504]
[1746049051537,6.8844,1798.1,1797.8,6.65938852]
[1746049051940,12.4458816,1798.1,1797.8,6.65938852]
[1746049052465,6.8844,1798.1,1797.8,6.65938852]
[1746049053061,6.09,1798.1,1797.8,6.65930434]
[1746049053292,6.09,1798.1,1797.9,6.22781832]
[1746049054092,11.65113645,1798.2,1797.9,6.22781832]
[1746049054285,11.65113645,1798.2,1797.8,6.65922597]
[1746049054466,11.65113645,1798.2,1797.9,5.56203512]
[1746049054669,11.65113645,1798.2,1798.0,0.27459142]
[1746049057468,11.65113645,1798.2,1797.9,5.56203407]
[1746049057668,11.65113645,1798.2,1798.0,0.27459142]
[1746049059493,6.09,1798.2,1798.0,0.27459142]
[1746049059809,6.09,1798.2,1798.0,1.05489142]
[1746049061008,6.08091609,1798.2,1798.0,1.05489142]
[1746049062103,11.64212928,1798.2,1798.0,1.05489142]
[1746049063706,11.64212928,1798.2,1798.0,0.27459142]
[1746049067713,11.64212928,1798.2,1797.8,7.43956378]
[1746049067880,11.64212928,1798.2,1797.9,0.27812891]
[1746049068082,11.64212928,1798.2,1797.8,7.43956378]
[1746049068318,11.64212928,1798.2,1797.9,0.27812891]
[1746049068490,11.64212928,1798.2,1797.8,13.00169804]
[1746049068681,11.64212928,1798.2,1797.9,1.57829871]
[1746049069791,11.64212928,1798.2,1797.9,6.15629871]
[1746049071422,11.64212928,1798.2,1797.9,11.71828257]
[1746049073427,11.64212928,1798.2,1797.9,6.15629871]
[1746049073632,5.56154668,1798.1,1797.9,6.15629871]
[1746049074232,11.64212928,1798.2,1797.9,6.15629871]
[1746049074733,17.20348401,1798.2,1797.9,6.15629871]
[1746049075236,11.64212928,1798.2,1797.9,6.15629871]
[1746049076433,17.20347124,1798.2,1797.9,6.15629871]
[1746049076633,17.20347124,1798.2,1798.0,5.56153331]
[1746049076634,6.08091609,1798.2,1798.0,5.56153331]
[1746049076799,6.08091609,1798.2,1798.0,6.17716318]
[1746049076996,6.08091609,1798.2,1798.1,0.27765578]
[1746049078908,11.64203276,1798.2,1797.9,11.44002775]
[1746049079108,11.64203276,1798.2,1798.0,0.27778917]
[1746049089355,11.63397352,1798.2,1798.0,0.27778917]
[1746049094828,11.63397352,1798.2,1798.1,0.8113]
[1746049094829,6.07285685,1798.2,1798.1,0.8113]
[1746049095027,6.07285685,1798.5,1798.3,5.56065761]
[1746049095340,6.07285685,1798.5,1798.4,0.27694618]
[1746049095541,6.07285685,1798.5,1798.3,6.67281838]
[1746049095765,6.07285685,1798.5,1798.4,0.27560513]
[1746049095947,6.07285685,1798.5,1798.3,6.67281838]
[1746049096156,6.07285685,1798.5,1798.4,0.27560513]
[1746049096461,6.07285685,1798.5,1798.3,6.67281838]
[1746049096667,6.07285685,1798.5,1798.4,0.27560513]
[1746049096956,6.07285685,1798.5,1798.3,12.23345123]
[1746049097160,6.07285685,1798.5,1798.4,1.49895025]
[1746049097366,6.07285685,1798.5,1798.4,0.27560513]
[1746049097552,6.07285685,1798.5,1798.3,5.56062327]
[1746049097751,6.07285685,1798.5,1798.4,0.27560513]
[1746049097942,6.07285685,1798.5,1798.3,5.56062327]
[1746049098143,6.07285685,1798.5,1798.4,1.06170513]
[1746049098457,6.07285685,1798.5,1798.4,2.27999715]
[1746049098659,6.07285685,1798.5,1798.4,7.84049537]
[1746049098841,6.07285685,1798.7,1798.5,5.56009105]
[1746049099159,6.07285685,1798.7,1798.6,0.27533847]
[1746049099344,6.07285685,1798.7,1798.4,7.5647556]
[1746049099667,6.07285685,1798.7,1798.5,1.03194735]
[1746049100871,11.63267556,1798.7,1798.5,1.03194735]
[1746049101071,11.63267556,1798.7,1798.5,0.27547179]
[1746049102464,6.07285685,1798.7,1798.5,0.27547179]
[1746049102669,6.07285685,1798.7,1798.5,5.83560153]
[1746049103369,6.07285685,1798.7,1798.5,0.27547179]
[1746049107472,6.07285685,1798.7,1798.5,5.83565505]
[1746049107649,6.07285685,1798.7,1798.5,7.17568719]
[1746049110688,6.07285685,1798.7,1798.5,0.27547179]
[1746049112390,6.07285685,1798.7,1798.5,5.83562815]
[1746049113686,6.07285685,1798.7,1798.5,5.73671833]
[1746049115084,6.07285685,1798.7,1798.5,0.17656197]
[1746049117203,6.07285685,1798.7,1798.5,5.73675026]
[1746049119365,6.07285685,1798.7,1798.5,0.17656197]
[1746049121068,6.07285685,1798.7,1798.5,5.73672615]
[1746049121409,6.07285685,1798.7,1798.5,7.0668654]
[1746049122401,6.07285685,1798.7,1798.5,1.50670122]
[1746049122702,6.07285685,1798.7,1798.5,0.17656197]
[1746049124718,6.07285685,1798.7,1798.5,5.73673153]
[1746049125002,6.07285685,1798.7,1798.5,10.31173153]
[1746049127003,6.06419822,1798.7,1798.5,10.31173153]
[1746049127706,6.06419822,1798.7,1798.5,4.75156197]
[1746049129519,6.06419822,1798.7,1798.5,10.31171015]
[1746049138999,8.55928704,1798.8,1798.5,10.31171015]
[1746049139000,14.62348526,1798.8,1798.5,10.31171015]
[1746049139646,9.06419822,1798.8,1798.5,10.31154807]
[1746049139946,14.62353178,1798.8,1798.5,10.31154807]
[1746049140849,9.06419822,1798.8,1798.5,10.31154807]
[1746049141356,14.62350171,1798.8,1798.5,10.31154807]
[1746049142219,9.06419822,1798.8,1798.5,10.31154807]
[1746049142852,14.62347698,1798.8,1798.5,10.31154807]
[1746049151859,14.62347698,1798.8,1798.5,4.75156197]
[1746049152260,5.55958279,1798.7,1798.5,4.75156197]
[1746049152574,5.55958279,1798.7,1798.5,0.17656197]
[1746049152579,17.69933038,1798.6,1798.5,0.17656197]
[1746049153071,17.69933038,1798.6,1798.2,4.574]
[1746049153072,6.31420742,1798.3,1798.2,4.574]
[1746049153445,9.31420742,1798.3,1798.2,4.574]
[1746049154940,10.80169019,1798.3,1798.2,4.574]
[1746049156754,16.86588841,1798.3,1798.2,4.574]
[1746049159784,16.86588841,1798.3,1798.2,4.79430322]
[1746049161949,14.62500564,1798.3,1798.2,4.79430322]
[1746049164753,14.61642606,1798.3,1798.2,4.79430322]
[1746049172481,15.37832606,1798.3,1798.2,4.79430322]
[1746049172993,14.61642606,1798.3,1798.2,4.79430322]
[1746049176760,14.61642606,1798.3,1798.2,0.22030322]
[1746049177071,5.5611813,1798.2,1798.0,4.575]
[1746049177594,9.06419822,1798.3,1798.0,4.575]
[1746049177793,14.62515433,1798.3,1798.0,4.575]
[1746049178317,5.56122944,1798.2,1798.0,4.575]
[1746049183103,14.62515433,1798.3,1798.0,4.575]
[1746049183314,5.56119984,1798.2,1798.0,4.575]
[1746049184008,5.54928609,1798.2,1798.0,4.575]
[1746049184933,20.18625203,1798.3,1798.0,4.575]
[1746049185145,14.62515433,1798.3,1798.0,4.575]
[1746049186142,5.5612141,1798.2,1798.0,4.575]
[1746049189728,5.5612141,1798.2,1798.1,0.22402918]
[1746049193643,5.54930635,1798.2,1798.1,0.22402918]
[1746049196344,5.54930635,1798.2,1797.9,10.88699318]
[1746049196511,5.54930635,1798.2,1798.1,0.22397784]
[1746049197033,5.54930635,1798.2,1797.9,10.88699318]
[1746049197237,5.54930635,1798.2,1798.0,0.22411124]
[1746049200256,3.0,1798.1,1798.0,0.22411124]
[1746049200455,9.31342594,1798.1,1798.0,0.22411124]
[1746049200626,19.18574965,1798.1,1798.0,0.22411124]
[1746049200824,23.99540701,1798.1,1797.7,10.13648349]
[1746049201028,6.06419822,1798.0,1797.8,0.22401874]
[1746049202957,6.06419822,1798.0,1797.7,5.3663]
[1746049203320,6.06419822,1798.0,1797.8,0.22504547]
[1746049203751,6.4803613,1798.0,1797.8,0.22504547]
[1746049204158,6.4803613,1798.0,1797.7,5.3663]
[1746049204333,12.04237278,1798.0,1797.9,0.22491204]
[1746049204537,17.60438426,1798.0,1797.8,0.22504547]
[1746049204749,12.04237278,1798.0,1797.9,0.22491204]
[1746049205164,5.56209964,1797.9,1797.7,5.3663]
[1746049206417,5.56235398,1797.8,1797.7,4.574]
[1746049212542,12.82643187,1798.0,1797.7,4.574]
[1746049212751,12.04223187,1798.0,1797.7,5.3613]
[1746049213260,17.60420628,1798.0,1797.7,5.3613]
[1746049214931,5.56206367,1797.9,1797.7,5.3613]
[1746049215760,12.04223187,1798.0,1797.7,10.9238914]
[1746049215968,17.60425219,1798.0,1797.7,5.3613]
[1746049218066,5.56205756,1797.9,1797.7,5.3613]
[1746049218417,12.04223187,1798.0,1797.7,5.3613]
[1746049218558,6.06419822,1798.0,1797.7,12.09612383]
[1746049218935,6.06419822,1798.0,1797.7,12.89612383]
[1746049219159,11.62594335,1798.0,1797.8,0.7928]
[1746049219748,11.62594335,1798.0,1797.9,0.22691434]
[1746049220070,11.62594335,1798.0,1797.8,0.7928]
[1746049220246,11.62594335,1798.0,1797.9,0.22691434]
[1746049220441,11.62594335,1798.0,1797.8,2.08296238]
[1746049220772,6.06419822,1798.0,1797.9,0.22691434]
[1746049221065,6.06419822,1798.0,1797.8,0.7928]
[1746049221268,11.62595685,1798.0,1797.9,0.22691434]
[1746049221470,11.62595685,1798.0,1797.8,0.7928]
[1746049221644,11.62595685,1798.0,1797.9,0.22691434]
[1746049221846,6.06419822,1798.0,1797.8,2.08296238]
[1746049222188,6.06419822,1798.0,1797.9,0.22691434]
[1746049222394,6.06419822,1798.3,1798.0,0.7928]
[1746049222578,11.62393327,1798.7,1798.3,5.56058367]
[1746049222778,6.06419822,1798.7,1798.4,6.90930303]
[1746049223093,6.06419822,1798.7,1798.5,10.13211154]
[1746049223259,6.06419822,1798.7,1798.6,1.01626517]
[1746049224259,6.06419822,1798.7,1798.6,6.57614507]
[1746049226060,6.06419822,1798.7,1798.6,7.37614507]
[1746049226267,6.06419822,1798.7,1798.6,9.12695894]
[1746049226974,6.06419822,1798.9,1798.6,9.12695894]
[1746049227298,6.06419822,1798.9,1798.7,5.55943927]
[1746049227496,6.06419822,1798.9,1798.8,0.22319857]
[1746049227807,5.55850952,1799.1,1798.8,0.22319857]
[1746049228095,5.55850952,1799.1,1798.8,5.78245164]
[1746049228270,5.55850952,1799.1,1798.8,0.22319857]
[1746049229361,5.55850952,1799.1,1798.9,4.571]
[1746049229569,5.55814541,1799.2,1798.9,4.571]
[1746049229778,5.55814541,1799.2,1799.0,0.22021263]
[1746049230174,5.55833472,1799.1,1799.0,0.22021263]
[1746049231615,5.55833472,1799.1,1799.0,0.36337979]
[1746049232028,5.97980499,1799.1,1799.0,0.36337979]
[1746049232381,5.55814541,1799.2,1799.0,0.36337979]
[1746049232875,11.11643302,1799.2,1799.0,0.36337979]
[1746049233082,5.55814541,1799.2,1799.0,0.36337979]
[1746049233716,5.55833472,1799.1,1799.0,0.36337979]
[1746049239526,5.55833472,1799.1,1799.0,8.36337979]